[Event "9e Open International de Porticcio"]
[Site "Porticcio, France"]
[Date "2024.07.02"]
[Round "5.3"]
[White "Lagarde, Maxime"]
[Black "Yankelevich, Lev"]
[Result "1/2-1/2"]
[TimeControl "1h30+30s/move"]
[WhiteElo "2604"]
[BlackElo "2416"]

1. e4 {[%clk 01:30:46]} {[%emt 00:00:08]} e5 {[%clk 01:30:55]} {[%emt
00:00:11]} 2. Nf3 {[%clk 01:31:13]} {[%emt 00:00:03]} Nc6 {[%clk 01:31:13]}
{[%emt 00:00:12]} 3. Bb5 {[%clk 01:31:40]} {[%emt 00:00:03]} a6 {[%clk
01:31:34]} {[%emt 00:00:09]} 4. Ba4 {[%clk 01:32:07]} {[%emt 00:00:03]} Nf6
{[%clk 01:31:45]} {[%emt 00:00:18]} 5. O-O {[%clk 01:32:31]} {[%emt 00:00:07]}
Be7 {[%clk 01:32:10]} {[%emt 00:00:05]} 6. d3 {[%clk 01:32:42]} {[%emt
00:00:19]} b5 {[%clk 01:32:31]} {[%emt 00:00:10]} 7. Bb3 {[%clk 01:33:08]}
{[%emt 00:00:04]} d6 {[%clk 01:32:53]} {[%emt 00:00:07]} 8. Bd2 {[%clk
01:33:34]} {[%emt 00:00:04]} O-O {[%clk 01:29:51]} {[%emt 00:03:32]} 9. h3
{[%clk 01:33:59]} {[%emt 00:00:05]} Be6 {[%clk 01:28:38]} {[%emt 00:01:43]} 10.
Nc3 {[%clk 01:34:19]} {[%emt 00:00:10]} Bxb3 {[%clk 01:21:37]} {[%emt
00:07:31]} 11. axb3 {[%clk 01:31:46]} {[%emt 00:03:03]} Qd7 {[%clk 01:20:58]}
{[%emt 00:01:09]} 12. Re1 {[%clk 01:27:42]} {[%emt 00:04:34]} Rfe8 {[%clk
01:19:14]} {[%emt 00:02:13]} 13. Nd5 {[%clk 01:19:57]} {[%emt 00:08:16]} Nxd5
{[%clk 01:15:41]} {[%emt 00:04:04]} 14. exd5 {[%clk 01:20:19]} {[%emt
00:00:08]} Nd8 {[%clk 01:15:15]} {[%emt 00:00:55]} 15. d4 {[%clk 01:15:18]}
{[%emt 00:05:31]} f6 {[%clk 01:14:58]} {[%emt 00:00:47]} 16. c4 {[%clk
01:13:23]} {[%emt 00:02:25]} c6 {[%clk 08:04:04]} {[%emt 00:01:24]} 17. dxc6
{[%clk 01:06:59]} {[%emt 00:06:55]} Qxc6 {[%clk 01:13:53]} {[%emt 00:00:41]} 18.
Rc1 {[%clk 01:00:46]} {[%emt 00:06:42]} Nf7 {[%clk 01:11:50]} {[%emt 00:02:33]}
19. Ba5 {[%clk 00:49:15]} {[%emt 00:12:02]} Bd8 {[%clk 01:04:44]} {[%emt
00:07:36]} 20. Qd2 {[%clk 00:48:24]} {[%emt 00:01:20]} Rb8 {[%clk 00:57:37]}
{[%emt 00:07:37]} 21. Bxd8 {[%clk 00:32:28]} {[%emt 00:16:26]} Rexd8 {[%clk
00:54:56]} {[%emt 00:03:11]} 22. Qc2 {[%clk 00:29:20]} {[%emt 00:03:37]} bxc4
{[%clk 00:51:33]} {[%emt 00:03:53]} 23. bxc4 {[%clk 00:29:28]} {[%emt
00:00:22]} Rb4 {[%clk 00:51:55]} {[%emt 00:00:08]} 24. Re3 {[%clk 00:24:42]}
{[%emt 00:05:17]} a5 {[%clk 00:47:20]} {[%emt 00:05:05]} 25. d5 {[%clk
00:20:20]} {[%emt 00:04:51]} Qb6 {[%clk 00:42:39]} {[%emt 00:05:10]} 26. b3
{[%clk 00:20:38]} {[%emt 00:00:12]} Rb8 {[%clk 00:42:47]} {[%emt 00:00:23]} 27.
Nd2 {[%clk 00:20:58]} {[%emt 00:00:10]} Nd8 {[%clk 00:40:56]} {[%emt 00:02:20]}
28. Qf5 {[%clk 00:16:48]} {[%emt 00:04:40]} Nf7 {[%clk 00:35:10]} {[%emt
00:06:16]} 29. Rg3 {[%clk 00:14:54]} {[%emt 00:02:24]} Kh8 {[%clk 00:34:07]}
{[%emt 00:01:33]} 30. Ne4 {[%clk 00:15:00]} {[%emt 00:00:24]} Qd8 {[%clk
00:33:57]} {[%emt 00:00:40]} 31. Rcc3 {[%clk 00:12:00]} {[%emt 00:03:30]} R4b7
{[%clk 00:32:42]} {[%emt 00:01:45]} 32. Rcf3 {[%clk 00:08:41]} {[%emt
00:03:48]} Nh6 {[%clk 00:30:03]} {[%emt 00:03:10]} 33. Qh5 {[%clk 00:06:57]}
{[%emt 00:02:12]} f5 {[%clk 00:28:48]} {[%emt 00:01:46]} 34. Ng5 {[%clk
00:05:59]} {[%emt 00:01:28]} Qe8 {[%clk 00:23:09]} {[%emt 00:06:10]} 35. Qxe8+
{[%clk 00:06:12]} {[%emt 00:00:17]} Rxe8 {[%clk 00:23:37]} {[%emt 00:00:02]} 36.
Rc3 {[%clk 00:05:53]} {[%emt 00:00:49]} Rc8 {[%clk 00:18:10]} {[%emt 00:05:57]}
37. Ne6 {[%clk 00:04:59]} {[%emt 00:01:24]} f4 {[%clk 00:16:33]} {[%emt
00:02:07]} 38. Rgd3 {[%clk 00:05:26]} {[%emt 00:00:03]} Nf5 {[%clk 00:16:58]}
{[%emt 00:00:05]} 39. c5 {[%clk 00:04:30]} {[%emt 00:01:26]} Kg8 {[%clk
00:11:36]} {[%emt 00:05:51]} 40. cxd6 {[%clk 00:02:36]} {[%emt 00:02:25]} Rxc3
{[%clk 00:10:39]} {[%emt 00:01:27]} 41. Rxc3 {[%clk 00:03:02]} {[%emt
00:00:04]} Nxd6 {[%clk 00:11:05]} {[%emt 00:00:03]} 42. Rc6 {[%clk 00:02:55]}
{[%emt 00:00:37]} Rd7 {[%clk 00:11:33]} {[%emt 00:00:02]} 43. Nc5 {[%clk
00:03:15]} {[%emt 00:00:11]} Rd8 {[%clk 00:11:59]} {[%emt 00:00:04]} 44. Ne6
{[%clk 00:03:38]} {[%emt 00:00:07]} Rd7 {[%clk 00:12:26]} {[%emt 00:00:03]} 45.
Ra6 {[%clk 00:02:45]} {[%emt 00:01:23]} Ne4 {[%clk 00:11:05]} {[%emt 00:01:50]}
46. f3 {[%clk 00:01:24]} {[%emt 00:01:52]} Nd2 {[%clk 00:09:06]} {[%emt
00:02:30]} 47. d6 {[%clk 00:00:42]} {[%emt 00:01:12]} Nxb3 {[%clk 00:07:27]}
{[%emt 00:00:25]} 1/2-1/2

[Event "9e Open International de Porticcio"]
[Site "Porticcio, France"]
[Date "2024.07.02"]
[Round "5.4"]
[White "Kavutskiy, Konstantin"]
[Black "Clarke, Brandon G I"]
[Result "0-1"]
[TimeControl "1h30+30s/move"]
[WhiteElo "2345"]
[BlackElo "2498"]

1. d4 {[%clk 01:23:15]} {[%emt 00:07:44]} Nf6 {[%clk 01:30:42]} {[%emt
00:00:18]} 2. c4 {[%clk 01:23:32]} {[%emt 00:00:13]} g6 {[%clk 01:30:59]}
{[%emt 00:00:13]} 3. Nc3 {[%clk 01:23:50]} {[%emt 00:00:12]} Bg7 {[%clk
01:29:57]} {[%emt 00:01:32]} 4. e4 {[%clk 01:24:13]} {[%emt 00:00:07]} d6
{[%clk 01:30:22]} {[%emt 00:00:06]} 5. Nf3 {[%clk 01:24:04]} {[%emt 00:00:38]}
O-O {[%clk 01:28:20]} {[%emt 00:02:32]} 6. Be2 {[%clk 01:24:20]} {[%emt
00:00:14]} e5 {[%clk 01:28:18]} {[%emt 00:00:33]} 7. d5 {[%clk 01:24:39]}
{[%emt 00:00:11]} a5 {[%clk 01:28:06]} {[%emt 00:00:42]} 8. h3 {[%emt
00:02:37]} Na6 {[%emt 00:00:33]} 9. Bg5 {[%emt 00:00:50]} h6 {[%emt 00:00:11]}
10. Be3 {[%emt 00:02:43]} Nc5 {[%emt 00:00:29]} 11. Nd2 {[%emt 00:05:17]} Nfd7
{[%emt 00:00:44]} 12. g4 {[%emt 00:00:25]} c6 {[%clk 01:18:50]} {[%emt
00:00:02]} 13. Qc2 {[%clk 01:19:53]} {[%emt 00:05:40]} a4 {[%clk 01:18:43]}
{[%emt 00:00:38]} 14. h4 {[%clk 01:17:00]} {[%emt 00:03:23]} Qa5 {[%clk
01:13:44]} {[%emt 00:05:29]} 15. h5 {[%clk 01:13:58]} {[%emt 00:03:31]} g5
{[%clk 01:11:57]} {[%emt 00:02:17]} 16. O-O {[%clk 01:09:18]} {[%emt 00:05:11]}
a3 {[%clk 01:10:26]} {[%emt 00:02:02]} 17. Nb3 {[%clk 01:00:49]} {[%emt
00:08:58]} Qb4 {[%clk 01:00:26]} {[%emt 00:10:30]} 18. Rab1 {[%clk 00:56:48]}
{[%emt 00:04:31]} axb2 {[%clk 00:52:03]} {[%emt 00:08:54]} 19. Qxb2 {[%clk
00:51:23]} {[%emt 00:05:54]} Na4 {[%clk 00:50:46]} {[%emt 00:01:47]} 20. Nxa4
{[%clk 00:51:25]} {[%emt 00:00:29]} Qxa4 {[%clk 00:51:12]} {[%emt 00:00:04]} 21.
Nd2 {[%clk 00:43:05]} {[%emt 00:08:49]} Qxa2 {[%clk 00:49:25]} {[%emt
00:02:17]} 22. Qc1 {[%clk 00:40:19]} {[%emt 00:03:16]} Bf6 {[%clk 00:36:01]}
{[%emt 00:13:53]} 23. Re1 {[%clk 00:32:57]} {[%emt 00:07:51]} Bd8 {[%clk
00:27:30]} {[%emt 00:09:01]} 24. Nb3 {[%clk 00:30:31]} {[%emt 00:02:56]} Ba5
{[%clk 00:14:36]} {[%emt 00:13:26]} 25. Bd1 {[%clk 00:22:41]} {[%emt 00:08:20]}
Bxe1 {[%clk 00:10:56]} {[%emt 00:04:10]} 26. Ra1 {[%clk 00:22:54]} {[%emt
00:00:17]} Qxa1 {[%clk 00:06:55]} {[%emt 00:04:31]} 27. Nxa1 {[%clk 00:23:15]}
{[%emt 00:00:09]} Bb4 {[%clk 00:04:29]} {[%emt 00:02:57]} 28. Nc2 {[%clk
00:20:06]} {[%emt 00:03:39]} Bc5 {[%clk 00:04:23]} {[%emt 00:00:36]} 29. Bxg5
{[%clk 00:20:20]} {[%emt 00:00:15]} hxg5 {[%clk 00:04:28]} {[%emt 00:00:26]} 30.
Qxg5+ {[%clk 00:20:41]} {[%emt 00:00:09]} Kh7 {[%clk 00:04:19]} {[%emt
00:00:39]} 31. Qe7 {[%clk 00:12:39]} {[%emt 00:08:31]} Ra2 {[%clk 00:02:00]}
{[%emt 00:02:49]} 32. g5 {[%clk 00:12:57]} {[%emt 00:00:12]} Rb2 {[%clk
00:00:32]} {[%emt 00:01:58]} 33. Kg2 {[%clk 00:07:22]} {[%emt 00:06:04]} Kg7
{[%clk 00:00:36]} {[%emt 00:00:27]} 34. h6+ {[%clk 00:04:50]} {[%emt 00:03:02]}
Kg6 {[%clk 00:01:05]} {[%emt 00:00:01]} 35. Bg4 {[%clk 00:03:17]} {[%emt
00:02:02]} Rxc2 {[%clk 00:01:33]} {[%emt 00:00:03]} 36. Bxd7 {[%clk 00:02:41]}
{[%emt 00:01:06]} Rxf2+ {[%clk 00:01:32]} {[%emt 00:00:31]} 37. Kg3 {[%clk
00:03:05]} {[%emt 00:00:06]} Rg8 {[%clk 00:00:47]} {[%emt 00:01:16]} 38. Bxc8
{[%clk 00:00:52]} {[%emt 00:02:43]} Rxc8 {[%clk 00:01:16]} {[%emt 00:00:01]} 39.
Qxb7 {[%clk 00:00:55]} {[%emt 00:00:26]} Rg8 {[%clk 00:01:45]} {[%emt
00:00:02]} 40. dxc6 {[%clk 00:00:59]} {[%emt 00:00:26]} Kh5 {[%clk 00:02:00]}
{[%emt 00:00:15]} 41. Qd7 {[%clk 00:00:42]} {[%emt 00:00:47]} Rxg5+ {[%clk
00:02:18]} {[%emt 00:00:12]} 42. Kh3 {[%clk 00:01:09]} {[%emt 00:00:03]} Rf4
{[%clk 00:01:36]} {[%emt 00:01:12]} 0-1

[Event "9e Open International de Porticcio"]
[Site "Porticcio, France"]
[Date "2024.07.02"]
[Round "5.5"]
[White "Kuru, Atilla"]
[Black "Nevednichy, Vladislav"]
[Result "1-0"]
[TimeControl "1h30+30s/move"]
[WhiteElo "2314"]
[BlackElo "2471"]

1. e4 {[%clk 01:30:58]} {[%emt 00:00:01]} c5 {[%clk 01:28:07]} {[%emt
00:02:53]} 2. Nf3 {[%clk 01:31:22]} {[%emt 00:00:05]} d6 {[%clk 01:28:12]}
{[%emt 00:00:26]} 3. d4 {[%clk 01:31:45]} {[%emt 00:00:07]} cxd4 {[%clk
01:28:37]} {[%emt 00:00:05]} 4. Nxd4 {[%clk 01:32:12]} {[%emt 00:00:03]} Nf6
{[%clk 01:29:02]} {[%emt 00:00:05]} 5. Nc3 {[%clk 01:32:38]} {[%emt 00:00:04]}
Bd7 {[%clk 01:27:24]} {[%emt 00:02:09]} 6. f3 {[%clk 01:33:01]} {[%emt
00:00:07]} e5 {[%clk 01:26:22]} {[%emt 00:01:31]} 7. Nb3 {[%clk 01:33:20]}
{[%emt 00:00:11]} Bc6 {[%clk 01:26:20]} {[%emt 00:00:33]} 8. Be3 {[%clk
01:26:33]} {[%emt 00:07:17]} Be7 {[%clk 01:21:16]} {[%emt 00:05:34]} 9. Qd2
{[%clk 01:24:11]} {[%emt 00:02:52]} d5 {[%clk 01:20:58]} {[%emt 00:00:48]} 10.
exd5 {[%clk 01:24:04]} {[%emt 00:00:36]} Nxd5 {[%clk 01:21:15]} {[%emt
00:00:13]} 11. Nxd5 {[%clk 01:09:14]} {[%emt 00:15:20]} Qxd5 {[%clk 01:21:36]}
{[%emt 00:00:09]} 12. Qxd5 {[%clk 01:07:49]} {[%emt 00:01:54]} Bxd5 {[%clk
01:22:04]} {[%emt 00:00:02]} 13. O-O-O {[%clk 01:07:56]} {[%emt 00:00:23]} Bc6
{[%clk 01:13:14]} {[%emt 00:09:21]} 14. Na5 {[%clk 01:08:08]} {[%emt 00:00:18]}
Nd7 {[%clk 01:03:29]} {[%emt 00:10:15]} 15. Nxc6 {[%clk 01:07:40]} {[%emt
00:00:58]} bxc6 {[%clk 01:03:57]} {[%emt 00:00:02]} 16. Ba6 {[%clk 01:07:20]}
{[%emt 00:00:50]} Rb8 {[%clk 00:58:28]} {[%emt 00:05:59]} 17. Rhe1 {[%clk
01:07:30]} {[%emt 00:00:21]} f6 {[%clk 00:57:46]} {[%emt 00:01:12]} 18. f4
{[%clk 01:01:17]} {[%emt 00:06:43]} Bc5 {[%clk 00:56:04]} {[%emt 00:02:12]} 19.
Bxc5 {[%clk 01:00:41]} {[%emt 00:01:06]} Nxc5 {[%clk 00:56:32]} {[%emt
00:00:02]} 20. Bf1 {[%clk 00:52:54]} {[%emt 00:08:17]} Rd8 {[%clk 00:46:01]}
{[%emt 00:11:01]} 21. fxe5 {[%clk 00:51:12]} {[%emt 00:02:12]} Rxd1+ {[%clk
00:46:17]} {[%emt 00:00:13]} 22. Kxd1 {[%clk 00:51:38]} {[%emt 00:00:04]} f5
{[%clk 00:44:43]} {[%emt 00:02:05]} 23. Re3 {[%clk 00:51:43]} {[%emt 00:00:24]}
Ke7 {[%clk 00:44:57]} {[%emt 00:00:16]} 24. Ke1 {[%clk 00:49:14]} {[%emt
00:02:59]} Rd8 {[%clk 00:42:04]} {[%emt 00:03:23]} 25. Ra3 {[%clk 00:46:54]}
{[%emt 00:02:50]} Rd5 {[%clk 00:32:45]} {[%emt 00:09:49]} 26. Rxa7+ {[%clk
00:46:00]} {[%emt 00:01:24]} Nd7 {[%clk 00:33:12]} {[%emt 00:00:02]} 27. e6
{[%clk 00:45:58]} {[%emt 00:00:31]} Re5+ {[%clk 00:33:40]} {[%emt 00:00:03]} 28.
Kf2 {[%clk 00:45:39]} {[%emt 00:00:49]} Kxe6 {[%clk 00:33:33]} {[%emt
00:00:36]} 29. a4 {[%clk 00:45:45]} {[%emt 00:00:24]} g5 {[%clk 00:31:59]}
{[%emt 00:02:03]} 30. a5 {[%clk 00:44:12]} {[%emt 00:02:04]} Nf6 {[%clk
00:32:25]} {[%emt 00:00:04]} 31. Be2 {[%clk 00:43:26]} {[%emt 00:01:15]} Kd6
{[%clk 00:30:44]} {[%emt 00:02:11]} 32. a6 {[%clk 00:37:29]} {[%emt 00:06:28]}
Ne4+ {[%clk 00:25:48]} {[%emt 00:05:26]} 33. Ke1 {[%clk 00:37:27]} {[%emt
00:00:31]} Ra5 {[%clk 00:26:14]} {[%emt 00:00:04]} 34. Bd3 {[%clk 00:37:49]}
{[%emt 00:00:08]} Nc5 {[%clk 00:19:45]} {[%emt 00:07:00]} 35. Bxf5 {[%clk
00:36:18]} {[%emt 00:02:01]} Nxa6 {[%clk 00:19:35]} {[%emt 00:00:40]} 36. Bxh7
{[%clk 00:36:41]} {[%emt 00:00:07]} Re5+ {[%clk 00:19:59]} {[%emt 00:00:06]} 37.
Kf2 {[%clk 00:37:06]} {[%emt 00:00:05]} Nc7 {[%clk 00:19:57]} {[%emt 00:00:32]}
38. Ra4 {[%clk 00:37:12]} {[%emt 00:00:24]} Ne6 {[%clk 00:18:11]} {[%emt
00:02:16]} 39. g3 {[%clk 00:37:08]} {[%emt 00:00:34]} Rd5 {[%clk 00:17:59]}
{[%emt 00:00:43]} 40. Ke2 {[%clk 00:36:25]} {[%emt 00:01:12]} Nc5 {[%clk
00:14:29]} {[%emt 00:03:59]} 41. Rc4 {[%clk 00:35:00]} {[%emt 00:01:55]} Re5+
{[%clk 00:13:58]} {[%emt 00:01:02]} 42. Kf3 {[%clk 00:35:01]} {[%emt 00:00:29]}
Nd7 {[%clk 00:13:43]} {[%emt 00:00:45]} 43. Rd4+ {[%clk 00:35:01]} {[%emt
00:00:30]} Kc7 {[%clk 00:14:03]} {[%emt 00:00:10]} 44. Be4 {[%clk 00:34:29]}
{[%emt 00:01:02]} Rb5 {[%clk 00:11:18]} {[%emt 00:03:15]} 45. b3 {[%clk
00:34:30]} {[%emt 00:00:28]} Ne5+ {[%clk 00:11:36]} {[%emt 00:00:13]} 46. Kg2
{[%clk 00:34:30]} {[%emt 00:00:30]} Rb8 {[%clk 00:11:48]} {[%emt 00:00:19]} 47.
Rd2 {[%clk 00:33:39]} {[%emt 00:01:20]} Rb4 {[%clk 00:09:52]} {[%emt 00:02:27]}
48. Bf5 {[%clk 00:33:42]} {[%emt 00:00:25]} Rb8 {[%clk 00:10:18]} {[%emt
00:00:06]} 49. h4 {[%clk 00:33:29]} {[%emt 00:00:43]} gxh4 {[%clk 00:09:55]}
{[%emt 00:00:53]} 50. gxh4 {[%clk 00:33:57]} {[%emt 00:00:01]} Rg8+ {[%clk
00:09:36]} {[%emt 00:00:49]} 51. Kh3 {[%clk 00:34:12]} {[%emt 00:00:10]} Rh8
{[%clk 00:08:28]} {[%emt 00:01:43]} 52. Kg3 {[%clk 00:33:28]} {[%emt 00:01:15]}
Rf8 {[%clk 00:05:37]} {[%emt 00:03:21]} 53. Be4 {[%clk 00:33:31]} {[%emt
00:00:25]} c5 {[%clk 00:05:29]} {[%emt 00:00:39]} 54. Rd5 {[%clk 00:33:17]}
{[%emt 00:00:43]} Nd7 {[%clk 00:05:56]} {[%emt 00:00:04]} 55. Bf5 {[%clk
00:33:27]} {[%emt 00:00:20]} Nf6 {[%clk 00:06:20]} {[%emt 00:00:06]} 56. Rxc5+
{[%clk 00:33:47]} {[%emt 00:00:11]} Kd6 {[%clk 00:06:49]} 57. Ra5 {[%clk
00:33:42]} {[%emt 00:00:34]} Rg8+ {[%clk 00:07:09]} {[%emt 00:00:10]} 58. Kf3
{[%clk 00:34:06]} {[%emt 00:00:06]} Rh8 {[%clk 00:07:19]} {[%emt 00:00:20]} 59.
Kf4 {[%clk 00:33:44]} {[%emt 00:00:52]} Rh5 {[%clk 00:06:29]} {[%emt 00:01:21]}
60. c4 {[%clk 00:33:16]} {[%emt 00:00:57]} Ke7 {[%clk 00:06:56]} {[%emt
00:00:03]} 61. Re5+ {[%clk 00:33:26]} {[%emt 00:00:21]} Kf8 {[%clk 00:07:02]}
{[%emt 00:00:24]} 62. Bg6 {[%clk 00:33:30]} {[%emt 00:00:25]} 1-0

[Event "9e Open International de Porticcio"]
[Site "Porticcio, France"]
[Date "2024.07.02"]
[Round "5.6"]
[White "Rakotomaharo, Fy Antenaina"]
[Black "Ouellet, Maili-Jade"]
[Result "1-0"]
[TimeControl "1h30+30s/move"]
[WhiteElo "2448"]
[BlackElo "2290"]

1. Nf3 {[%clk 01:27:11]} {[%emt 00:03:48]} d5 {[%clk 01:30:52]} {[%emt
00:00:09]} 2. e3 {[%clk 01:27:25]} {[%emt 00:00:17]} c5 {[%clk 01:29:45]}
{[%emt 00:01:37]} 3. c4 {[%clk 01:26:15]} {[%emt 00:01:40]} d4 {[%clk
01:29:18]} {[%emt 00:00:56]} 4. b4 {[%clk 01:26:03]} {[%emt 00:00:42]} dxe3
{[%clk 01:22:44]} {[%emt 00:07:04]} 5. fxe3 {[%clk 01:26:25]} {[%emt 00:00:07]}
cxb4 {[%clk 01:23:12]} {[%emt 00:00:04]} 6. d4 {[%clk 01:26:48]} {[%emt
00:00:07]} Nf6 {[%clk 01:22:51]} {[%emt 00:00:51]} 7. Bd3 {[%clk 01:25:33]}
{[%emt 00:01:44]} Nbd7 {[%clk 01:16:44]} {[%emt 00:06:38]} 8. O-O {[%clk
01:17:43]} {[%emt 00:08:20]} Qc7 {[%clk 01:08:44]} {[%emt 00:08:30]} 9. a3
{[%clk 01:08:58]} {[%emt 00:09:15]} e5 {[%clk 01:06:47]} {[%emt 00:02:27]} 10.
Nbd2 {[%clk 01:09:16]} {[%emt 00:00:12]} bxa3 {[%clk 01:04:29]} {[%emt
00:02:48]} 11. Qa4 {[%clk 01:09:11]} {[%emt 00:00:34]} Qc6 {[%clk 01:01:13]}
{[%emt 00:03:46]} 12. Qc2 {[%clk 01:09:24]} {[%emt 00:00:17]} Be7 {[%clk
00:58:05]} {[%emt 00:03:39]} 13. Ne4 {[%clk 00:41:11]} {[%emt 00:28:42]} Nxe4
{[%clk 00:49:52]} {[%emt 00:08:44]} 14. Bxe4 {[%clk 00:41:33]} {[%emt
00:00:08]} Qc7 {[%clk 00:49:06]} {[%emt 00:01:16]} 15. Bxh7 {[%clk 00:28:24]}
{[%emt 00:13:38]} e4 {[%clk 00:45:15]} {[%emt 00:04:21]} 16. Bxe4 {[%clk
00:28:18]} {[%emt 00:00:36]} Bd6 {[%clk 00:45:25]} {[%emt 00:00:21]} 17. h3
{[%clk 00:25:40]} {[%emt 00:03:08]} Nf6 {[%clk 00:45:27]} {[%emt 00:00:28]} 18.
Bxa3 {[%clk 00:18:39]} {[%emt 00:07:31]} Bxa3 {[%clk 00:41:52]} {[%emt
00:04:06]} 19. Rxa3 {[%clk 00:19:04]} {[%emt 00:00:04]} Bxh3 {[%clk 00:41:31]}
{[%emt 00:00:51]} 20. Ne5 {[%clk 00:19:21]} {[%emt 00:00:13]} Be6 {[%clk
00:37:23]} {[%emt 00:04:39]} 21. Rb1 {[%clk 00:17:12]} {[%emt 00:02:39]} Bc8
{[%clk 00:31:12]} {[%emt 00:06:42]} 22. Qa4+ {[%clk 00:10:27]} {[%emt
00:07:14]} Kd8 {[%clk 00:28:18]} {[%emt 00:03:25]} 23. Bf3 {[%clk 00:09:06]}
{[%emt 00:01:49]} Re8 {[%clk 00:27:42]} {[%emt 00:01:06]} 24. Rab3 {[%clk
00:08:47]} {[%emt 00:00:50]} Re7 {[%clk 00:26:31]} {[%emt 00:01:42]} 25. c5
{[%clk 00:02:19]} {[%emt 00:06:58]} Ne8 {[%clk 00:15:50]} {[%emt 00:11:10]} 26.
Bxb7 {[%clk 00:01:36]} {[%emt 00:01:13]} Bxb7 {[%clk 00:16:06]} {[%emt
00:00:14]} 27. Rxb7 {[%clk 00:02:01]} {[%emt 00:00:05]} Qxb7 {[%clk 00:16:07]}
{[%emt 00:00:28]} 28. Rxb7 {[%clk 00:02:12]} {[%emt 00:00:20]} Rxb7 {[%clk
00:16:32]} {[%emt 00:00:05]} 29. Qc6 {[%clk 00:02:37]} {[%emt 00:00:04]} Rab8
{[%clk 00:16:18]} {[%emt 00:00:44]} 30. Qd5+ {[%clk 00:03:00]} {[%emt
00:00:07]} Kc8 {[%clk 00:16:25]} {[%emt 00:00:24]} 31. Nxf7 {[%clk 00:03:04]}
{[%emt 00:00:26]} 1-0